[Event "OBEM 2018"]
[Site "Bremen"]
[Date "2018.03.24"]
[Round "1"]
[White "Silber, Kevin"]
[Black "Zhong, Xianghui"]
[Result "1-0"]
[ECO "B38"]
[WhiteElo "2274"]
[BlackElo "1772"]
[Annotator "NA"]
[PlyCount "75"]
[EventDate "2018.??.??"]
[EventType "swiss"]
[EventCountry "GER"]
[SourceTitle "playchess.com"]
[Source "ChessBase"]
[SourceQuality "1"]
[TimeControl "40/5400+30:1800+30"]

1. e4 c5 2. c4 g6 3. Ne2 Bg7 4. d4 cxd4 5. Nxd4 Nc6 6. Be3 Nf6 7. Nc3 O-O 8. Be2 e6 9. O-O d5 10. cxd5 exd5 11. exd5 Ne7 12. Ndb5 Nexd5 13. Nxd5 Nxd5 14. Bc5 Bxb2 15. Rb1 Nc3 16. Nxc3 Bxc3 17. Bxf8 Qxf8 18. Bf3 Rb8 19. Qa4 a6 20. Qf4 Be6 21. Rfc1 Ba5 22. Qe5 b6 23. Bd5 Bf5 24. Rc7 Re8 25. Qf6 Be6 26. Bxe6 Rxe6 27. Qf3 Qe8 28. g3 Re1+ 29. Rxe1 Qxe1+ 30. Kg2 Qe6 31. Ra7 Qxa2 32. Rxa6 Qe6 33. h4 h5 34. Qb7 Kg7 35. Ra8 Bb4 36. Qf3 Bc5 37. Qc3+ Qf6 38. Rg8+ 1-0

[Event "OBEM 2018"]
[Site "Bremen"]
[Date "2018.03.24"]
[Round "1"]
[White "Kardoeus, David"]
[Black "Goes, Carsten"]
[Result "1-0"]
[ECO "B01"]
[WhiteElo "2229"]
[BlackElo "1756"]
[Annotator "NA"]
[PlyCount "25"]
[EventDate "2018.??.??"]
[EventType "swiss"]
[EventCountry "GER"]
[SourceTitle "playchess.com"]
[Source "ChessBase"]
[SourceQuality "1"]
[TimeControl "40/5400+30:1800+30"]

1. e4 d5 2. exd5 Nf6 3. d4 Bg4 4. Be2 Bxe2 5. Qxe2 Qxd5 6. Nf3 Nc6 7. c4 Qf5 8. O-O O-O-O 9. d5 Nb4 10. a3 Qd3 11. Qd1 Qxd1 12. Rxd1 Na6 13. Ne5 1-0

[Event "OBEM 2018"]
[Site "Bremen"]
[Date "2018.03.24"]
[Round "1"]
[White "Hattenhauer, Klaus"]
[Black "Hoeffer, David"]
[Result "0-1"]
[ECO "A45"]
[WhiteElo "1758"]
[BlackElo "2264"]
[Annotator "NA"]
[PlyCount "110"]
[EventDate "2018.??.??"]
[EventType "swiss"]
[EventCountry "GER"]
[SourceTitle "playchess.com"]
[Source "ChessBase"]
[SourceQuality "1"]
[TimeControl "40/5400+30:1800+30"]

1. d4 Nf6 2. Bf4 g6 3. e3 Bg7 4. Nd2 d6 5. h3 c5 6. Bb5+ Nbd7 7. c3 O-O 8. Ngf3 a6 9. Bd3 b5 10. Rc1 Bb7 11. O-O Qb6 12. Re1 Rad8 13. Qe2 Rfe8 14. e4 e5 15. dxc5 Nxc5 16. Be3 Qc6 17. c4 b4 18. Bg5 h6 19. Bh4 Ne6 20. Bc2 Rc8 21. Qe3 Nh5 22. Nh2 f5 23. f3 f4 24. Qd3 Kh7 25. Bf2 Bf6 26. Nhf1 Bd8 27. g4 fxg3 28. Nxg3 Nhf4 29. Qf1 Ng5 30. Ne2 Nfxh3+ 31. Kh1 Nxf2+ 32. Qxf2 Rf8 33. Qg2 Rc7 34. Ng1 Rcf7 35. Nh3 Nxh3 36. Qxh3 Rf4 37. Kg2 Bc8 38. Qh2 Rh4 39. Qg3 Rh3 40. Qf2 Bb6 41. Ba4 Qc7 42. c5 Bxc5 43. Rxc5 dxc5 44. Rc1 Qe7 45. Rxc5 Rd8 46. Rxc8 Rxc8 47. Kxh3 h5 48. Qb6 Rc1 49. f4 Rh1+ 50. Kg2 Qh4 51. f5 Rh2+ 52. Kf1 Qf4+ 53. Kg1 Qg3+ 54. Kf1 Qg2+ 55. Ke1 Qe2# 0-1

[Event "OBEM 2018"]
[Site "Bremen"]
[Date "2018.03.24"]
[Round "1"]
[White "Hoffer, Hayo"]
[Black "Margraf, Daniel"]
[Result "0-1"]
[ECO "A60"]
[WhiteElo "1743"]
[BlackElo "2200"]
[Annotator "NA"]
[PlyCount "74"]
[EventDate "2018.??.??"]
[EventType "swiss"]
[EventCountry "GER"]
[SourceTitle "playchess.com"]
[Source "ChessBase"]
[SourceQuality "1"]
[TimeControl "40/5400+30:1800+30"]

1. d4 c5 2. d5 e5 3. dxe6 fxe6 4. c4 Nf6 5. Nc3 d5 6. cxd5 exd5 7. Bg5 d4 8. Ne4 Be7 9. Nxf6+ Bxf6 10. Bxf6 Qxf6 11. g3 O-O 12. Nf3 Nc6 13. Bg2 Be6 14. O-O Rae8 15. b3 Nb4 16. a3 Nd5 17. Nd2 Qe5 18. Nc4 Qc7 19. Bxd5 Bxd5 20. Rc1 Qe7 21. Re1 Qe4 22. f3 Qe6 23. Qd3 b5 24. Nd2 Qb6 25. Qc2 Rc8 26. Kf2 c4 27. bxc4 bxc4 28. Rb1 Qh6 29. Kg2 Qe3 30. a4 d3 31. exd3 Bxf3+ 32. Nxf3 Qxf3+ 33. Kg1 cxd3 34. Qg2 Qf7 35. Rbd1 Rc2 36. Rd2 Qc4 37. Ra1 Qd4+ 0-1

[Event "OBEM 2018"]
[Site "Bremen"]
[Date "2018.03.25"]
[Round "2"]
[White "Hoeffer, David"]
[Black "Kastens, Elmar"]
[Result "1/2-1/2"]
[ECO "D11"]
[WhiteElo "2264"]
[BlackElo "1930"]
[Annotator "NA"]
[PlyCount "62"]
[EventDate "2018.??.??"]
[EventType "swiss"]
[EventCountry "GER"]
[SourceTitle "playchess.com"]
[Source "ChessBase"]
[SourceQuality "1"]
[TimeControl "40/5400+30:1800+30"]

{[%evp 8,46,17,20,1,12,35,34,33,37,58,32767,32767,32767,24,24,31,-11,28,18,32767,10,57,55,32767,69,32767,92,104,32767,108,32767,65,32767,32767,32767,32767,32767,32767,32767,-7]} 1. Nf3 Nf6 2. g3 d5 3. Bg2 c6 4. O-O Bg4 5. d4 e6 6. c4 {LiveBook: 107 Games} dxc4 {D11: Slav Defence: 3 Nf3 sidelines and 3...Nf6 4 e3 Bg4} (6... Nbd7 7. Qb3 Qb6 8. Nc3 Be7 9. Re1 O-O 10. c5 Qc7 11. Bf4 Qc8 12. Rac1 h6 13. e4 dxe4 14. Nxe4 Nxe4 15. Rxe4 Nf6 16. Ree1 Nd5 {1-0 (53) Rapport,R (2720)-Bromberger,S (2532) Reykjavik 2016}) 7. Ne5 Bh5 8. Na3 $146 ({Predecessor:} 8. Nc3 Be7 9. h3 Nfd7 10. Nxc4 O-O 11. g4 Bg6 12. e4 Nb6 13. Na5 {½-½ (26) Scekic,M (2447)-Jovanovic,S (2297) Belgrade 2003}) 8... Be7 (8... Bxa3 $5 9. bxa3 Nbd7 $14) 9. Naxc4 O-O 10. Qc2 Nbd7 11. a3 Nb6 12. b4 Nxc4 13. Qxc4 Nd5 14. Bb2 Nb6 15. Qc2 Rc8 16. Nd3 Bg6 17. e4 Nd7 18. Qb3 Bf6 19. Kh1 Qb6 20. Ne5 Bxe5 21. dxe5 Rcd8 22. f4 Nc5 23. Qc2 Nd3 $11 24. f5 Bh5 25. Bc1 Qd4 26. Bg5 Rd7 27. h3 Qxe5 28. g4 f6 29. fxe6 Qxe6 30. Bxf6 Bg6 31. Bg5 Bxe4 1/2-1/2

[Event "OBEM 2018"]
[Site "Bremen"]
[Date "2018.03.25"]
[Round "2"]
[White "Margraf, Daniel"]
[Black "Ditmas, Hugh"]
[Result "1-0"]
[ECO "B23"]
[WhiteElo "2200"]
[BlackElo "1920"]
[Annotator "NA RC"]
[PlyCount "65"]
[EventDate "2018.??.??"]
[EventType "swiss"]
[EventCountry "GER"]
[SourceTitle "playchess.com"]
[Source "ChessBase"]
[SourceQuality "1"]
[TimeControl "40/5400+30:1800+30"]

{[%evp 8,48,4,-4,5,-14,0,-6,0,32767,-14,-40,-40,-49,-43,-43,32767,32767,-51,-68,-58,-52,-67,-65,-33,-29,32767,-35,-26,-24,0,32767,-59,-75,32767,32767,-39,-31,0,-27,-3,32767,11]} 1. e4 c5 2. Nc3 Nc6 3. f4 g6 4. Nf3 Bg7 5. a3 d6 6. Bb5 {B23: Closed Sicilian: Lines without g3} Bd7 {LiveBook: 7 Games} 7. O-O e6 (7... Nf6 8. d3 O-O 9. Kh1 a6 10. Bxc6 Bxc6 11. Qe1 e6 12. Bd2 b5 13. Qh4 Nh5 {0-1 (37) Lie,K (2513)-Urkedal,F (2485) Norway 2013}) 8. d3 Nge7 9. Qe1 $146 ({Find the theoretical novelty and annotate with similar games:} 9. Bd2 O-O 10. Qc1 a6 11. Bc4 b5 12. Ba2 Nd4 13. Nxd4 cxd4 14. Ne2 Rc8 {0-1 (32) Vazoura,E (1570)-Manolaraki,Y (1991) Achaea 2012}) 9... Nd4 10. Bxd7+ Qxd7 11. Nxd4 cxd4 12. Nb1 O-O 13. c4 dxc3 14. Nxc3 d5 15. Kh1 dxe4 16. dxe4 Rfd8 17. Be3 Qd3 18. Bc5 Nc6 19. f5 Qc4 20. Bg1 exf5 21. exf5 Re8 22. Qf2 Ne5 23. Qc2 Rad8 24. Bxa7 Nc6 $11 25. Bb6 Rd3 26. f6 Bh6 27. Rae1 Re5 28. Rxe5 Nxe5 29. Re1 Be3 30. Rxe3 Rxe3 31. Bxe3 Qf1+ 32. Bg1 h5 33. Qe2 1-0

[Event "OBEM 2018"]
[Site "Bremen"]
[Date "2018.03.25"]
[Round "2"]
[White "Erofeev, Anastasia"]
[Black "Silber, Kevin"]
[Result "0-1"]
[ECO "D10"]
[WhiteElo "1936"]
[BlackElo "2274"]
[Annotator "NA"]
[PlyCount "68"]
[EventDate "2018.??.??"]
[EventType "swiss"]
[EventCountry "GER"]
[SourceTitle "playchess.com"]
[Source "ChessBase"]
[SourceQuality "1"]
[TimeControl "40/5400+30:1800+30"]

1. d4 d5 2. c4 c6 3. cxd5 cxd5 4. Bf4 Nf6 {D10: Slav Defence: 3 cxd5 (without early Nf3) and 3 Nc3} 5. e3 Nc6 6. Bd3 {LiveBook: 50 Games} (6. Nc3 Bg4 7. Qb3 Na5 8. Qa4+ Bd7 9. Bb5 e6 10. Nf3 a6 11. Bxd7+ Nxd7 12. Ne5 b5 13. Qd1 Nxe5 14. Bxe5 Nc4 15. Qe2 Nxe5 16. dxe5 Bb4 17. Rc1 {½-½ (65) Ni,H (2671)-Eljanov,P (2711) Riadh 2017}) 6... Qb6 {[#]} 7. Nc3 $1 Bd7 8. Nge2 e6 9. O-O Nh5 10. Bg5 $146 ({Predecessor:} 10. Bg3 Nb4 11. Bb1 Nxg3 12. hxg3 g6 13. a3 Nc6 14. b4 a6 15. Bd3 {1-0 (47) Galje,H (2110)-Ebels,T (2101) Hoogeveen 2006}) 10... h6 11. Bh4 g5 12. Bg3 (12. Na4 $5 {[%cal Ra4b6]} Qa5 13. Nec3 $11) 12... Nxg3 13. Nxg3 h5 14. a3 Bd6 15. b4 Qd8 ({Black should play} 15... f5 $11) 16. Nge2 (16. Nxh5 $14 f5 17. h3) 16... Qf6 17. b5 Ne7 18. e4 Bc7 19. e5 Qg7 20. f4 gxf4 $14 21. Nxf4 Bb6 22. Nce2 Qxe5 23. Kh1 Bxd4 24. Nxd4 Qxd4 25. Be2 Qxd1 26. Raxd1 h4 27. Nh5 Nf5 28. Nf6+ Ke7 29. Rxf5 exf5 30. Nxd7 Kxd7 31. Rxd5+ Ke6 32. Bc4 Rac8 33. Bb3 Kf6 34. Kg1 Rhd8 0-1

[Event "OBEM 2018"]
[Site "Bremen"]
[Date "2018.03.25"]
[Round "2"]
[White "Hochhuth, Arnd"]
[Black "Kardoeus, David"]
[Result "0-1"]
[ECO "A26"]
[WhiteElo "1927"]
[BlackElo "2229"]
[Annotator "NA"]
[PlyCount "154"]
[EventDate "2018.??.??"]
[EventType "swiss"]
[EventCountry "GER"]
[SourceTitle "playchess.com"]
[Source "ChessBase"]
[SourceQuality "1"]
[TimeControl "40/5400+30:1800+30"]

1. Nf3 Nf6 2. g3 g6 3. Bg2 Bg7 4. O-O O-O 5. d3 d6 6. c4 e5 7. Nc3 Nc6 8. Rb1 a6 {LiveBook: 8 Games A26: English Opening vs King's Indian with ...Nc6 and d3} (8... a5 9. a3 Re8 10. Nd2 Be6 11. Nd5 Qd7 12. Nxf6+ Bxf6 13. Ne4 Bg7 14. Bh6 Bh3 15. Bxg7 Kxg7 16. e3 Bxg2 17. Kxg2 a4 18. Nc3 Nd8 {0-1 (65) Iturrizaga Bonelli,E (2650)-Mamedyarov,S (2804) chess.com INT 2018}) 9. b3 $146 ({Predecessor:} 9. b4 Re8 10. Bg5 h6 11. Bxf6 Bxf6 12. a4 Bg7 13. b5 Ne7 14. Ne1 a5 15. Nc2 Rb8 16. Ne3 b6 17. Ncd5 {½-½ (54) Beletsky,A (2374)-Ganerdene,S (2196) Moscow 2018}) 9... Nd4 10. Ng5 h6 11. Nge4 Nxe4 12. dxe4 f5 (12... b5 $11) 13. e3 Ne6 14. exf5 gxf5 15. b4 a5 16. b5 Nc5 17. Na4 (17. Ba3 $16) 17... e4 18. Bb2 Bxb2 $11 19. Nxc5 Qf6 20. Na4 Be5 21. Qd2 Be6 22. Rfc1 b6 23. f4 exf3 24. Bxf3 Rae8 25. Bd5 Kh7 26. Nc3 Rg8 27. Bxe6 Rxe6 28. Nd5 Qh4 29. Nf4 Bxf4 30. exf4 Re4 31. Rf1 Qf6 32. Rbc1 Rge8 33. Rfe1 Rxe1+ 34. Rxe1 Rxe1+ 35. Qxe1 Qd4+ 36. Kg2 Qxc4 37. Qe7+ Kg6 38. h4 Qxa2+ 39. Kh3 Qf7 40. Qe3 h5 41. Qc3 Qd5 42. Kh2 Qa2+ 43. Kh3 Qf7 44. Qc6 a4 45. Qa8 a3 46. Qxa3 Qd5 47. Qc1 Qc5 48. Qe1 Qd5 49. Kh2 Qe4 50. Qc1 Qe2+ 51. Kh3 Qxb5 52. Qxc7 Qd5 53. Kh2 b5 54. Qe7 b4 55. Qg5+ Kf7 56. Qxh5+ Ke7 57. Qg5+ Kd7 58. Qg7+ Kc6 59. h5 Qd2+ 60. Kh3 b3 61. Qg8 b2 62. Qa8+ Kc5 63. Qc8+ Kd4 64. Qxf5 Ke3 65. Qb5 Qe2 66. Qb6+ Kf3 67. Qb7+ Kf2 68. Qb6+ Kf3 69. Qb7+ Ke3 70. Qb6+ Ke4 71. Qb4+ Kf5 72. Qa5+ Ke6 73. Qa2+ Kf6 74. Kh4 Qh2+ 75. Kg4 Qc2 76. Qa5 Qd1+ 77. Kh4 b1=Q 0-1

[Event "OBEM 2018"]
[Site "Bremen"]
[Date "2018.03.27"]
[Round "5"]
[White "Silber, Kevin"]
[Black "Margraf, Daniel"]
[Result "0-1"]
[ECO "C68"]
[WhiteElo "2274"]
[BlackElo "2200"]
[Annotator "ChessBase"]
[PlyCount "98"]
[EventDate "2018.??.??"]
[EventType "swiss"]
[EventCountry "GER"]
[SourceTitle "playchess.com"]
[Source "ChessBase"]
[SourceQuality "1"]
[TimeControl "40/5400+30:1800+30"]

1. e4 {[%emt 0:00:00]} e5 {[%emt 0:00:05]} 2. Nf3 {[%emt 0:00:00]} Nc6 {[%emt 0:00:06]} 3. Bb5 {[%emt 0:00:00]} a6 {[%emt 0:00:04]} 4. Bxc6 {[%emt 0:00:00]} dxc6 {[%emt 0:00:05]} 5. O-O {[%emt 0:00:02]} Bg4 {[%emt 0:00:09]} 6. h3 {[%emt 0:00:08]} Bh5 {[%emt 0:00:37]} 7. g4 {[%emt 0:00:49]} Bg6 {[%emt 0:00:11]} 8. Nxe5 {[%emt 0:00:13]} Qh4 {[%emt 0:01:01]} 9. Qf3 {[%emt 0:01:24]} f6 {[%emt 0:02:29]} 10. Nxg6 {[%emt 0:00:24]} hxg6 {[%emt 0:00:06]} 11. Kg2 {[%emt 0:00:05]} O-O-O {[%emt 0:00:31]} 12. d3 {[%emt 0:02:03]} Bd6 {[%emt 0:04:43]} 13. Nc3 {[%emt 0:21:28]} Ne7 {[%emt 0:07:13]} 14. Rh1 {[%emt 0:02:21]} g5 {[%emt 0:05:46]} 15. Be3 {[%emt 0:06:56]} Kb8 {[%emt 0:04:30]} 16. Ne2 {[%emt 0:06:14]} Ng6 {[%emt 0:05:28]} 17. Nd4 {[%emt 0:06:58]} Qh7 {[%emt 0:09:49]} 18. Nf5 {[%emt 0:09:27]} Be5 {[%emt 0:07:38]} 19. Rad1 {[%emt 0:14:25]} Bxb2 {[%emt 0:12:49]} 20. d4 {[%emt 0:07:01]} Rhe8 {[%emt 0:05:49]} 21. Rb1 {[%emt 0:05:13]} Bxd4 {[%emt 0:07:38]} 22. Bxd4 {[%emt 0:02:01]} Nf4+ {[%emt 0:12:19]} 23. Kf1 {[%emt 0:08:27]} g6 {[%emt 0:06:44]} 24. Bxf6 {[%emt 0:00:17]} gxf5 {[%emt 0:00:08]} 25. Bxd8 {[%emt 0:02:42]} Rxd8 {[%emt 0:00:22]} 26. exf5 {[%emt 0:00:16]} Rd5 {[%emt 0:00:43]} 27. Kg1 {[%emt 0:02:13]} Rc5 {[%emt 0:00:04]} 28. Qb3 {[%emt 0:01:05]} Rb5 {[%emt 0:00:27]} 29. Kh2 {[%emt 0:00:27]} Rxb3 {[%emt 0:00:15]} 30. Rxb3 {[%emt 0:00:02]} Qe7 {[%emt 0:00:57]} 31. Re3 {[%emt 0:00:18]} Qd6 {[%emt 0:00:05]} 32. Rf1 {[%emt 0:01:30]} Nd5+ {[%emt 0:00:36]} 33. Rg3 {[%emt 0:00:10]} Qf4 {[%emt 0:00:23]} 34. Kg1 {[%emt 0:00:39]} b5 {[%emt 0:00:55]} 35. Rd1 {[%emt 0:00:40]} Kb7 {[%emt 0:00:16]} 36. c3 {[%emt 0:00:42]} a5 {[%emt 0:01:02]} 37. Rdd3 {[%emt 0:00:33]} Qc1+ {[%emt 0:01:26]} 38. Kh2 {[%emt 0:00:04]} Nf4 {[%emt 0:00:54]} 39. Rdf3 {[%emt 0:01:18]} Qd2 {[%emt 0:02:12]} 40. a3 {[%emt 0:00:36]} Qd6 {[%emt 0:30:24]} 41. Re3 {[%emt 0:01:23]} c5 {[%emt 0:00:00]} 42. Kg1 {[%emt 0:00:27]} c4 {[%emt 0:00:00]} 43. h4 {[%emt 0:00:39]} gxh4 {[%emt 0:00:00]} 44. Rgf3 {[%emt 0:00:06]} Qd1+ {[%emt 0:00:00]} 45. Kh2 {[%emt 0:00:07]} Ne2 {[%emt 0:00:00]} 46. Rxe2 {[%emt 0:02:41]} Qxe2 {[%emt 0:00:00]} 47. Kg2 {[%emt 0:00:22]} h3+ {[%emt 0:00:00]} 48. Rxh3 {[%emt 0:00:27]} Qxg4+ {[%emt 0:00:00]} 49. Rg3 {[%emt 0:00:13]} Qxf5 {[%emt 0:00:00]} 0-1

[Event "OBEM 2018"]
[Site "Bremen"]
[Date "2018.03.27"]
[Round "5"]
[White "Kardoeus, David"]
[Black "Boehning, Kilian"]
[Result "1/2-1/2"]
[ECO "C46"]
[WhiteElo "2229"]
[BlackElo "2109"]
[Annotator "NA"]
[PlyCount "30"]
[EventDate "2018.??.??"]
[EventType "swiss"]
[EventCountry "GER"]
[SourceTitle "playchess.com"]
[Source "ChessBase"]
[SourceQuality "1"]
[TimeControl "40/5400+30:1800+30"]

1. e4 {[%emt 0:04:50]} e5 {[%emt 0:00:38]} 2. Nf3 {[%emt 0:00:11]} Nc6 {[%emt 0:00:10]} 3. Nc3 {[%emt 0:00:22]} Be7 {[%emt 0:03:23]} 4. Bb5 {[%emt 0:05:01]} d6 {[%emt 0:04:10]} 5. d4 {[%emt 0:05:21]} exd4 {[%emt 0:01:52]} 6. Nd5 {[%emt 0:00:11]} a6 {[%emt 0:06:37]} 7. Bxc6+ {[%emt 0:03:37]} bxc6 {[%emt 0:00:23]} 8. Nxe7 {[%emt 0:00:41]} Nxe7 {[%emt 0:05:00]} 9. Qxd4 {[%emt 0:02:40]} O-O {[%emt 0:04:30]} 10. Bd2 {[%emt 0:12:23]} c5 {[%emt 0:05:30]} 11. Qd3 {[%emt 0:01:14]} Rb8 {[%emt 0:01:19]} 12. Bc3 {[%emt 0:12:08]} Qe8 {[%emt 0:08:58]} 13. O-O-O {[%emt 0:15:44]} Qa4 {[%emt 0:01:18]} 14. a3 {[%emt 0:00:52]} Qb5 {[%emt 0:07:44]} 15. Qxb5 {[%emt 0:02:34]} axb5 $11 {[%emt 0:01:02]} 1/2-1/2

[Event "OBEM 2018"]
[Site "Bremen"]
[Date "2018.03.27"]
[Round "5"]
[White "Issing, Peter"]
[Black "Schulz, Daniel"]
[Result "1-0"]
[ECO "A05"]
[WhiteElo "2196"]
[BlackElo "2051"]
[Annotator "ChessBase"]
[PlyCount "81"]
[EventDate "2018.??.??"]
[EventType "swiss"]
[EventCountry "GER"]
[SourceTitle "playchess.com"]
[Source "ChessBase"]
[SourceQuality "1"]
[TimeControl "40/5400+30:1800+30"]

1. Nf3 {[%emt 0:00:20]} Nf6 {[%emt 0:12:54]} 2. c4 {[%emt 0:00:59]} b6 {[%emt 0:04:51]} 3. g3 {[%emt 0:03:54]} Bb7 {[%emt 0:00:14]} 4. Bg2 {[%emt 0:00:04]} e6 {[%emt 0:00:19]} 5. O-O {[%emt 0:00:21]} Be7 {[%emt 0:00:10]} 6. b3 {[%emt 0:00:51]} O-O {[%emt 0:00:21]} 7. Bb2 {[%emt 0:00:08]} c5 {[%emt 0:04:11]} 8. Nc3 {[%emt 0:01:07]} Nc6 {[%emt 0:00:46]} 9. d4 {[%emt 0:02:00]} cxd4 {[%emt 0:02:23]} 10. Nxd4 {[%emt 0:00:59]} a6 {[%emt 0:09:38]} 11. Rc1 {[%emt 0:09:32]} Qc7 {[%emt 0:06:40]} 12. Nd5 {[%emt 0:06:42]} Qd8 {[%emt 0:13:44]} 13. Nxe7+ {[%emt 0:02:56]} Qxe7 {[%emt 0:03:34]} 14. Qd2 {[%emt 0:05:03]} Rfd8 {[%emt 0:01:30]} 15. Rfd1 {[%emt 0:02:18]} Rac8 {[%emt 0:06:56]} 16. Qe3 {[%emt 0:08:59]} d5 {[%emt 0:17:33]} 17. Nxc6 {[%emt 0:05:23]} Rxc6 {[%emt 0:00:15]} 18. cxd5 {[%emt 0:12:37]} Rxc1 {[%emt 0:05:49]} 19. Rxc1 {[%emt 0:00:37]} Nxd5 {[%emt 0:01:53]} 20. Qd4 {[%emt 0:15:32]} f6 {[%emt 0:02:09]} 21. Rd1 {[%emt 0:01:52]} Rc8 {[%emt 0:01:47]} 22. e4 {[%emt 0:00:51]} e5 {[%emt 0:02:04]} 23. Qd2 {[%emt 0:00:11]} Nb4 {[%emt 0:00:53]} 24. a3 {[%emt 0:06:09]} Nc6 {[%emt 0:00:14]} 25. Qe3 {[%emt 0:01:13]} Qc7 {[%emt 0:01:19]} 26. Bh3 {[%emt 0:00:26]} Rd8 {[%emt 0:00:30]} 27. Be6+ {[%emt 0:00:13]} Kh8 {[%emt 0:00:29]} 28. Rc1 {[%emt 0:00:09]} Rd6 {[%emt 0:00:43]} 29. Bd5 {[%emt 0:00:14]} Qd8 {[%emt 0:00:12]} 30. a4 {[%emt 0:00:59]} Na5 {[%emt 0:00:32]} 31. Ba3 {[%emt 0:01:31]} Rd7 {[%emt 0:00:54]} 32. b4 {[%emt 0:06:24]} Bxd5 {[%emt 0:00:30]} 33. bxa5 {[%emt 0:00:48]} Bb7 {[%emt 0:00:18]} 34. axb6 {[%emt 0:04:12]} Rd3 {[%emt 0:00:33]} 35. Qc5 {[%emt 0:00:06]} Rd1+ {[%emt 0:00:02]} 36. Kg2 {[%emt 0:00:16]} Bxe4+ {[%emt 0:00:18]} 37. f3 {[%emt 0:00:48]} Rd2+ {[%emt 0:00:33]} 38. Kh3 {[%emt 0:00:28]} Bf5+ {[%emt 0:00:56]} 39. g4 {[%emt 0:00:08]} Bxg4+ {[%emt 0:00:51]} 40. Kxg4 {[%emt 0:00:52]} f5+ {[%emt 0:30:29]} 41. Kh3 {[%emt 0:31:28]} 1-0

[Event "OBEM 2018"]
[Site "Bremen"]
[Date "2018.03.27"]
[Round "5"]
[White "Mueller, Wolfgang"]
[Black "Steffens, Oliver"]
[Result "1-0"]
[ECO "B33"]
[WhiteElo "2023"]
[BlackElo "1880"]
[Annotator "NA"]
[PlyCount "77"]
[EventDate "2018.??.??"]
[EventType "swiss"]
[EventCountry "GER"]
[SourceTitle "playchess.com"]
[Source "ChessBase"]
[SourceQuality "1"]
[TimeControl "40/5400+30:1800+30"]

1. e4 {[%emt 0:00:00]} c5 {[%emt 0:00:04]} 2. Nf3 {[%emt 0:00:00]} Nc6 {[%emt 0:00:09]} 3. d4 {[%emt 0:00:00]} cxd4 {[%emt 0:00:06]} 4. Nxd4 {[%emt 0:00:03]} Nf6 {[%emt 0:00:05]} 5. Nc3 {[%emt 0:00:15]} e5 {[%emt 0:00:04]} 6. Ndb5 {[%emt 0:00:26]} d6 {[%emt 0:00:05]} 7. Bg5 {[%emt 0:00:14]} a6 {[%emt 0:00:11]} 8. Na3 {[%emt 0:00:06]} b5 {[%emt 0:00:04]} 9. Bxf6 {[%emt 0:00:08]} gxf6 {[%emt 0:00:06]} 10. Nd5 {[%emt 0:00:05]} Bg7 {[%emt 0:00:19]} 11. c3 {[%emt 0:00:44]} f5 {[%emt 0:00:06]} 12. exf5 {[%emt 0:00:46]} Bxf5 {[%emt 0:00:12]} 13. Nc2 {[%emt 0:00:10]} O-O {[%emt 0:00:56]} 14. Nce3 {[%emt 0:00:13]} Be6 {[%emt 0:00:24]} 15. Bd3 {[%emt 0:00:18]} f5 {[%emt 0:02:07]} 16. Qh5 {[%emt 0:00:54]} e4 {[%emt 0:01:52]} 17. Bc2 {[%emt 0:00:06]} Ne7 {[%emt 0:01:33]} 18. Rd1 {[%emt 0:00:43]} Ng6 {[%emt 0:08:12]} 19. g3 {[%emt 0:45:14]} Ne5 {[%emt 0:03:18]} 20. Nf4 {[%emt 0:02:07]} Bf7 {[%emt 0:19:52]} 21. Bb3 {[%emt 0:06:08]} Bxb3 {[%emt 0:05:29]} 22. axb3 {[%emt 0:02:14]} Qd7 {[%emt 0:04:20]} 23. Rd5 {[%emt 0:06:08]} Nf3+ {[%emt 0:04:50]} 24. Ke2 {[%emt 0:07:28]} Be5 {[%emt 0:01:55]} 25. Rhd1 {[%emt 0:01:17]} Rf6 {[%emt 0:00:33]} 26. Rxe5 {[%emt 0:05:20]} Nxe5 {[%emt 0:00:13]} 27. Nfd5 {[%emt 0:00:49]} Raf8 {[%emt 0:19:59]} 28. Nxf6+ {[%emt 0:02:29]} Rxf6 {[%emt 0:00:10]} 29. Qg5+ {[%emt 0:02:44]} Kf7 {[%emt 0:01:34]} 30. Nd5 {[%emt 0:03:56]} Rg6 {[%emt 0:01:09]} 31. Qh5 {[%emt 0:00:21]} Kf8 {[%emt 0:14:07]} 32. Ra1 {[%emt 0:01:11]} Nd3 {[%emt 0:02:42]} 33. Rxa6 {[%emt 0:01:02]} Kg7 {[%emt 0:06:04]} 34. Ne3 {[%emt 0:02:01]} Kf6 {[%emt 0:01:23]} 35. Nxf5 {[%emt 0:02:21]} Rg5 {[%emt 0:00:30]} 36. Rxd6+ {[%emt 0:00:50]} Qxd6 {[%emt 0:01:04]} 37. Qxg5+ {[%emt 0:00:17]} Kxg5 {[%emt 0:00:11]} 38. Nxd6 {[%emt 0:00:09]} Nc1+ {[%emt 0:00:28]} 39. Ke3 {[%emt 0:00:20]} 1-0

[Event "OBEM 2018"]
[Site "Bremen"]
[Date "2018.03.28"]
[Round "6.2"]
[White "Schulz, Daniel"]
[Black "Mueller, Wolfgang"]
[Result "0-1"]
[ECO "E09"]
[WhiteElo "2052"]
[BlackElo "2023"]
[Annotator "NA RC"]
[PlyCount "66"]
[EventDate "2018.??.??"]
[EventType "swiss"]
[EventCountry "GER"]
[SourceTitle "playchess.com"]
[Source "ChessBase"]
[SourceQuality "1"]
[TimeControl "40/5400+30:1800+30"]

1. d4 e6 2. c4 d5 3. Nf3 Nf6 4. g3 Be7 5. Bg2 O-O 6. O-O Nbd7 7. Qc2 c6 8. Nbd2 b6 9. e4 dxe4 10. Nxe4 Nxe4 11. Qxe4 Bb7 12. Rd1 Nf6 13. Qc2 Rc8 14. Rb1 h6 15. c5 Nd5 16. Bd2 Bf6 17. a4 Qe7 18. b4 Rfd8 19. Rdc1 g5 20. h3 Qc7 21. Qe4 Bg7 22. Qe2 Ne7 23. b5 cxb5 24. c6 Bxc6 25. Nxg5 hxg5 26. axb5 Bxd4 27. Qg4 Bxf2+ 28. Kh2 Qxg3+ 29. Qxg3 Bxg3+ 30. Kxg3 Nf5+ 31. Kg4 Bxg2 32. Bxg5 Rd4+ 33. Kh5 Bf3# 0-1